fUST/lending_fUST_20251015
["ID","MTS","AMOUNT","RATE_DAILY","PERIOD"]
[391271583,1760459434126,-3600.21,0.00022989,2]
[391271584,1760459434139,-2351.0,0.00022997,2]
[391271585,1760459434148,-160.0,0.00023,2]
[391271586,1760459434157,-76600.12886609,0.00023,2]
[391271587,1760459434167,-3116.06,0.00023199,2]
[391271588,1760459434180,-382.82791894,0.000232,2]
[391271589,1760459434190,-3655.477706,0.000232,2]
[391271590,1760459434199,-4000.0,0.00023369,2]
[391271591,1760459434208,-3500.0,0.00023438,2]
[391271592,1760459434218,-2236.76106912,0.00023465,2]
[391271593,1760459434227,-460.0,0.00023519,2]
[391271594,1760459434236,-318.93407856,0.00023565,10]
[391271595,1760459434245,-500.0,0.00023588,2]
[391271596,1760459434254,-502.58216715,0.000237,2]
[391271597,1760459434263,-500.0,0.00023734,2]
[391271598,1760459434272,-500.0,0.00023791,2]
[391271599,1760459434282,-410.83971789,0.000238,2]
[391271600,1760459434291,-500.0,0.0002383,2]
[391271601,1760459434300,-500.0,0.00023902,2]
[391271602,1760459434310,-864.0,0.00023903,20]
[391271603,1760459434321,-4500.0,0.00023917,2]
[391271604,1760459434330,-500.0,0.00023924,2]
[391271605,1760459434339,-500.0,0.00023945,2]
[391271606,1760459434347,-6000.0,0.00023978,3]
[391271607,1760459434356,-357.13,0.0002398,3]
[391271608,1760459434365,-178.57,0.0002398,3]
[391271609,1760459434373,-535.71,0.0002398,3]
[391271610,1760459434385,-4000.0,0.00023986,2]
[391271611,1760459434394,-4800.28,0.00023988,2]
[391271612,1760459434508,-1013.9,0.00024,2]
[391271613,1760459434517,-25000.0,0.00024,2]
[391271614,1760459434528,-37183.22,0.00024,7]
[391271615,1760459434537,-5333.94479104,0.00024,60]
[391271616,1760459434546,-8000.0,0.00024004,3]
[391271617,1760459434554,-10000.0,0.00024004,3]
[391271618,1760459434564,-500.0,0.00024006,2]
[391271619,1760459434573,-500.0,0.00024019,2]
[391271620,1760459434582,-500.0,0.00024037,2]
[391271621,1760459434591,-560.0,0.00024067,2]
[391271622,1760459434602,-44570.13449369,0.00024082,2]
[391271623,1760459434611,-1000.0,0.00024139,2]
[391271624,1760459434620,-503.97240022,0.00024139,2]
[391271625,1760459434634,-244554.48415192,0.00024142,2]
[391271626,1760459434644,-25000.0,0.0002415,2]
[391271627,1760459434654,-500.0,0.00024169,2]
[391271628,1760459434664,-500.0,0.00024173,2]
[391271629,1760459434673,-500.09664347,0.00024173,2]
[391271630,1760459434683,-500.0,0.00024173,2]
[391271631,1760459434692,-500.0,0.00024173,2]
[391271632,1760459434702,-500.0,0.00024173,2]
[391271633,1760459434712,-500.0,0.00024173,2]
[391271634,1760459434721,-500.0,0.00024173,2]
[391271635,1760459434731,-501.70752271,0.00024173,2]
[391271636,1760459434740,-500.0,0.00024173,2]
[391271637,1760459434749,-500.21361187,0.00024173,2]
[391271638,1760459434759,-500.0,0.00024173,2]
[391271639,1760459434768,-500.0,0.00024173,2]
[391271640,1760459434778,-500.0,0.00024173,2]
[391271641,1760459434788,-500.0,0.00024173,2]
[391271642,1760459434798,-500.0,0.00024219,2]
[391271643,1760459434808,-179.64071856,0.00024283,2]
[391271644,1760459434818,-211.57054546,0.000243,2]
[391271645,1760459434827,-182.31176688,0.000243,2]
[391271646,1760459434837,-610.17538477,0.000243,2]
[391271647,1760459434846,-19434.07,0.000243,2]
[391271648,1760459434855,-175.61074947,0.000243,2]
[391271649,1760459434865,-199.94889655,0.000243,2]
[391271650,1760459434874,-192.77622778,0.000243,2]
[391271651,1760459434891,-394.21104625,0.000243,2]
[391271652,1760459434900,-323.7863823,0.000243,2]
[391271653,1760459434909,-1554.09529507,0.000243,2]
[391271654,1760459434919,-804.37022582,0.000243,2]
[391271655,1760459434928,-500.0,0.0002431,2]
[391271656,1760459434938,-500.0,0.00024314,2]
[391271657,1760459434947,-160.0,0.00024334,2]
[391271658,1760459434956,-402.43064913,0.00024334,2]
[391271659,1760459434965,-417.15472785,0.00024334,2]
[391271660,1760459434976,-160.0,0.00024334,2]
[391271661,1760459434985,-500.0,0.00024356,2]
[391271662,1760459434994,-438.85151684,0.000244,2]
[391271663,1760459435004,-171.0,0.00024438,13]
[391271664,1760459435013,-499.3,0.00024483,2]
[391271665,1760459435022,-4500.0,0.00024534,2]
[391271666,1760459435031,-2236.76106908,0.00024542,2]
[391271667,1760459435040,-500.0,0.00024597,2]
[391271668,1760459435049,-182.31176688,0.000246,2]
[391271669,1760459435058,-610.17538477,0.000246,2]
[391271670,1760459435068,-175.61074947,0.000246,2]
[391271671,1760459435077,-199.94889655,0.000246,2]
[391271672,1760459435086,-192.77622778,0.000246,2]
[391271673,1760459435094,-394.21104625,0.000246,2]
[391271674,1760459435104,-323.7863823,0.000246,2]
[391271675,1760459435113,-1554.09529507,0.000246,2]
[391271676,1760459435123,-804.37022582,0.000246,2]
[391271677,1760459435137,-660.0,0.00024615,2]
[391271678,1760459435146,-500.0,0.00024625,2]
[391271679,1760459435155,-151.0,0.00024658,2]
[391271680,1760459435165,-734.0,0.00024658,2]
[391271681,1760459435174,-151.0,0.00024713,2]
[391271682,1760459435184,-734.0,0.00024713,2]
[391271683,1760459435195,-1000.0,0.00024721,2]
[391271684,1760459435204,-1000.0,0.00024721,2]
[391271685,1760459435214,-175.5319855,0.00024721,2]
[391271686,1760459435223,-1000.0,0.00024721,2]
[391271687,1760459435232,-500.0,0.00024721,2]
[391271688,1760459435241,-1000.0,0.00024721,2]
[391271689,1760459435250,-1000.0,0.00024721,2]
[391271690,1760459435259,-1000.0,0.00024721,2]
[391271691,1760459435268,-1000.0,0.00024721,2]
[391271692,1760459435277,-1004.631657,0.00024721,2]
[391271693,1760459435286,-1000.0,0.00024721,2]
[391271694,1760459435295,-500.0,0.00024767,2]
[391271695,1760459435305,-151.0,0.00024768,2]
[391271696,1760459435314,-734.0,0.00024768,2]
[391271697,1760459435323,-500.0,0.00024773,2]
[391271698,1760459435332,-500.0,0.00024773,2]
[391271699,1760459435341,-500.0,0.00024773,2]
[391271700,1760459435350,-500.0,0.00024773,2]
[391271701,1760459435359,-500.0,0.00024773,2]
[391271702,1760459435368,-177.60445815,0.00024773,2]
[391271703,1760459435376,-500.0,0.00024773,2]
[391271704,1760459435389,-500.0,0.00024773,2]
[391271705,1760459435404,-500.0,0.00024773,2]
[391271706,1760459435413,-500.0,0.00024773,2]
[391271707,1760459435422,-500.0,0.00024773,2]
[391271708,1760459435432,-500.0,0.00024773,2]
[391271709,1760459435443,-500.0,0.00024773,2]
[391271710,1760459435452,-500.0,0.00024773,2]
[391271711,1760459435461,-500.0,0.00024773,2]
[391271712,1760459435470,-193.53599063,0.00024773,2]
[391271713,1760459435480,-500.0,0.00024773,2]
[391271714,1760459435489,-500.0,0.00024773,2]
[391271715,1760459435499,-182.31176688,0.000248,2]
[391271716,1760459435508,-610.17538477,0.000248,2]
[391271717,1760459435517,-175.61074947,0.000248,2]
[391271718,1760459435527,-192.77622778,0.000248,2]
[391271719,1760459435536,-394.21104625,0.000248,2]
[391271720,1760459435546,-323.7863823,0.000248,2]
[391271721,1760459435555,-1554.09529507,0.000248,2]
[391271722,1760459435564,-804.37022582,0.000248,2]
[391271723,1760459435574,-402.43064913,0.000248,7]
[391271724,1760459435584,-8677.11989616,0.000248,3]
[391271725,1760459435594,-823.0,0.00024821,2]
[391271726,1760459435603,-233.08885725,0.00024822,2]
[391271727,1760459435613,-734.0,0.00024822,2]
[391271728,1760459435622,-500.0,0.00024873,2]
[391271729,1760459435634,-500.0,0.00024873,2]
[391271730,1760459435644,-500.0,0.00024873,2]
[391271731,1760459435653,-500.0,0.00024873,2]
[391271732,1760459435662,-500.0,0.00024873,2]
[391271733,1760459435672,-500.0,0.00024873,2]
[391271734,1760459435681,-500.0,0.00024873,2]
[391271735,1760459435690,-500.0,0.00024873,2]
[391271736,1760459435700,-500.0,0.00024873,2]
[391271737,1760459435709,-500.0,0.00024873,2]
[391271738,1760459435718,-500.0,0.00024873,2]
[391271739,1760459435728,-500.0,0.00024873,2]
[391271740,1760459435737,-500.0,0.00024873,2]
[391271741,1760459435747,-500.0,0.00024873,2]
[391271742,1760459435756,-500.0,0.00024873,2]
[391271743,1760459435766,-500.0,0.00024873,2]
[391271744,1760459435777,-500.0,0.00024873,2]
[391271745,1760459435786,-500.0,0.00024873,2]
[391271746,1760459435796,-500.0,0.00024873,2]
[391271747,1760459435806,-734.0,0.00024877,2]
[391271748,1760459435815,-536409.654548,0.000249,2]
[391271749,1760459435826,-177.56474277,0.0002493,2]
[391271750,1760459435835,-734.0,0.00024932,2]
[391271751,1760459435844,-734.0,0.00024987,2]
[391271752,1760459435854,-6000.35,0.00024988,2]
[391271753,1760459435875,-466.86331578,0.00025,2]
[391271754,1760459435896,-154.62290452,0.00025,2]
[391271755,1760459435907,-346.026,0.00025019,8]
[391271756,1760459435918,-734.0,0.00025042,2]
[391271757,1760459435927,-734.0,0.00025096,2]
[391271758,1760459435937,-610.17538477,0.000251,2]
[391271759,1760459435947,-175.61074947,0.000251,2]
[391271760,1760459435956,-394.21104625,0.000251,2]
[391271761,1760459435965,-323.7863823,0.000251,2]
[391271762,1760459435975,-1554.09529507,0.000251,2]
[391271763,1760459435984,-804.37022582,0.000251,2]
[391271764,1760459435993,-500.0,0.00025133,7]
[391271765,1760459436003,-734.0,0.00025151,2]
[391271766,1760459436011,-760.0,0.00025163,2]
[391271767,1760459436020,-168.61892522,0.00025168,2]
[391271768,1760459436030,-500.0,0.00025176,7]
[391271769,1760459436039,-886.0,0.00025184,2]
[391271770,1760459436048,-199.0,0.00025205,7]
[391271771,1760459436057,-734.0,0.00025206,2]
[391271772,1760459436067,-500.0,0.00025226,7]
[391271773,1760459436075,-293.85068442,0.00025226,7]
[391271774,1760459436084,-500.0,0.00025245,7]
[391271775,1760459436094,-734.0,0.00025261,2]
[391271776,1760459436103,-530.35195132,0.00025268,2]
[391271777,1760459436112,-1500.0,0.00025268,2]
[391271778,1760459436120,-1500.0,0.00025268,2]
[391271779,1760459436133,-1500.0,0.00025268,2]
[391271780,1760459436142,-1500.0,0.00025268,2]
[391271781,1760459436152,-1505.73864317,0.00025268,2]
[391271782,1760459436161,-1500.0,0.00025268,2]
[391271783,1760459436171,-1500.0,0.00025268,2]
[391271784,1760459436180,-610.17538477,0.000253,2]
[391271785,1760459436189,-175.61074947,0.000253,2]
[391271786,1760459436199,-394.21104625,0.000253,2]
[391271787,1760459436209,-323.7863823,0.000253,2]
[391271788,1760459436219,-1554.09529507,0.000253,2]
[391271789,1760459436228,-804.37022582,0.000253,2]
[391271790,1760459436238,-734.0,0.00025316,2]
[391271791,1760459436247,-1000.0,0.00025321,2]
[391271792,1760459436256,-1000.0,0.00025321,2]
[391271793,1760459436265,-1000.0,0.00025321,2]
[391271794,1760459436274,-1000.0,0.00025321,2]
[391271795,1760459436283,-1000.0,0.00025321,2]
[391271796,1760459436292,-1000.0,0.00025321,2]
[391271797,1760459436301,-182.92838623,0.00025321,2]
[391271798,1760459436310,-264.2141144,0.00025321,2]
[391271799,1760459436319,-1110.37696371,0.00025321,2]
[391271800,1760459436328,-176.89510933,0.00025321,2]
[391271801,1760459436337,-1000.0,0.00025321,2]
[391271802,1760459436346,-1000.0,0.00025321,2]
[391271803,1760459436355,-1000.0,0.00025321,2]
[391271804,1760459436364,-714.26,0.0002535,3]
[391271805,1760459436373,-357.14,0.0002535,3]
[391271806,1760459436385,-734.0,0.0002537,2]
[391271807,1760459436395,-37183.22,0.000254,7]
[391271808,1760459436408,-1000.0,0.00025421,2]
[391271809,1760459436417,-1000.0,0.00025421,2]
[391271810,1760459436427,-1000.0,0.00025421,2]
[391271811,1760459436436,-1000.0,0.00025421,2]
[391271812,1760459436446,-1000.0,0.00025421,2]
[391271813,1760459436456,-1000.0,0.00025421,2]
[391271814,1760459436465,-1000.0,0.00025421,2]
[391271815,1760459436475,-1000.0,0.00025421,2]
[391271816,1760459436485,-1000.0,0.00025421,2]
[391271817,1760459436494,-1000.0,0.00025421,2]
[391271818,1760459436503,-1000.0,0.00025421,2]
[391271819,1760459436513,-1000.0,0.00025421,2]
[391271820,1760459436523,-577.1107497,0.00025421,2]
[391271821,1760459436532,-1000.0,0.00025421,2]
[391271822,1760459436541,-1000.0,0.00025421,2]
[391271823,1760459436550,-1000.0,0.00025421,2]
[391271824,1760459436559,-1000.0,0.00025421,2]
[391271825,1760459436569,-1000.0,0.00025421,2]
[391271826,1760459436578,-1000.0,0.00025421,2]
[391271827,1760459436587,-734.0,0.00025425,2]
[391271828,1760459436596,-199.0,0.00025479,8]
[391271829,1760459436605,-734.0,0.0002548,2]
[391271830,1760459436615,-500.0,0.00025514,7]
[391271831,1760459436624,-150.0,0.00025517,2]
[391271832,1760459436638,-150.0,0.00025517,2]
[391271833,1760459436648,-734.0,0.00025535,2]
[391271834,1760459436657,-734.0,0.0002559,2]
[391271835,1760459436667,-1554.09529507,0.000256,2]
[391271836,1760459436677,-494.87511473,0.000256,2]
[391271837,1760459436687,-501.25869411,0.00025616,7]
[391271838,1760459436697,-500.0,0.00025618,7]
[391271839,1760459436706,-2236.76106908,0.00025619,2]
[391271840,1760459436715,-500.0,0.00025622,2]
[391271841,1760459436724,-500.0,0.00025622,2]
[391271842,1760459436733,-500.0,0.00025622,2]
[391271843,1760459436743,-500.0,0.00025622,2]
[391271844,1760459436752,-734.0,0.00025644,2]
[391271845,1760459436763,-500.0,0.0002568,7]
[391271846,1760459436773,-502.88236722,0.00025684,7]
[391271847,1760459436782,-734.0,0.00025699,2]
[391271848,1760459436792,-860.0,0.00025711,2]
[391271849,1760459436801,-199.0,0.00025753,9]
[391271850,1760459436811,-734.0,0.00025754,2]
[391271851,1760459436820,-1554.09529507,0.000258,2]
[391271852,1760459436829,-734.0,0.00025809,2]
[391271853,1760459436838,-1578.09265396,0.00025816,2]
[391271854,1760459436848,-2000.0,0.00025816,2]
[391271855,1760459436857,-2000.0,0.00025816,2]
[391271856,1760459436866,-950.53397247,0.00025816,2]
[391271857,1760459436876,-2000.0,0.00025816,2]
[391271858,1760459436894,-2123.80643804,0.00025816,2]
[391271859,1760459436903,-734.0,0.00025863,2]
[391271860,1760459436913,-1500.0,0.00025868,2]
[391271861,1760459436923,-1500.0,0.00025868,2]
[391271862,1760459436933,-1613.00948021,0.00025868,2]
[391271863,1760459436942,-1500.0,0.00025868,2]
[391271864,1760459436951,-1500.0,0.00025868,2]
[391271865,1760459436961,-1070.25887313,0.00025868,2]
[391271866,1760459436970,-1500.0,0.00025868,2]
[391271867,1760459436979,-1500.0,0.00025868,2]
[391271868,1760459436988,-1500.0,0.00025868,2]
[391271869,1760459436997,-741.96048883,0.00025918,2]
[391271870,1760459437006,-1500.0,0.00025968,2]
[391271871,1760459437015,-1500.0,0.00025968,2]
[391271872,1760459437024,-1500.0,0.00025968,2]
[391271873,1760459437034,-1500.0,0.00025968,2]
[391271874,1760459437043,-1500.0,0.00025968,2]
[391271875,1760459437144,-1102.93322573,0.00025968,2]
[391271876,1760459437155,-1500.0,0.00025968,2]
[391271877,1760459437164,-1413.61438681,0.00025968,2]
[391271878,1760459437174,-1500.0,0.00025968,2]
[391271879,1760459437183,-1500.0,0.00025968,2]
[391271880,1760459437193,-184.44043873,0.00025968,2]
[391271881,1760459437203,-1500.0,0.00025968,2]
[391271882,1760459437212,-588.0098805,0.00025968,2]
[391271883,1760459437222,-1500.0,0.00025968,2]
[391271884,1760459437232,-959.38731434,0.00025968,2]
[391271885,1760459437241,-1500.0,0.00025968,2]
[391271886,1760459437250,-1500.0,0.00025968,2]
[391271887,1760459437259,-1500.0,0.00025968,2]
[391271888,1760459437268,-7200.42,0.00025987,2]
[391271889,1760459437277,-338486.25466423,0.00026,30]
[391271890,1760459437286,-269.49706005,0.00026027,10]
[391271891,1760459437296,-7360.87,0.00026027,2]
[391271892,1760459437306,-250.0,0.00026065,2]
[391271893,1760459437315,-300.0,0.00026065,2]
[391271894,1760459437323,-172.0,0.00026082,19]
[391271895,1760459437333,-1554.09529507,0.000261,2]
[391271896,1760459437342,-1000.0,0.0002617,2]
[391271897,1760459437351,-557.5679129,0.0002617,2]
[391271898,1760459437360,-1000.0,0.0002617,2]
[391271899,1760459437369,-212.901145,0.00026198,2]
[391271900,1760459437377,-322.377182,0.00026198,2]
[391271901,1760459437389,-522.88691368,0.000262,2]
[391271902,1760459437398,-960.0,0.00026259,2]
[391271903,1760459437411,-44570.13449369,0.00026264,2]
[391271904,1760459437420,-1000.0,0.00026293,30]
[391271905,1760459437430,-1554.09529507,0.000263,2]
[391271906,1760459437439,-422.46741215,0.00026364,2]
[391271907,1760459437447,-2500.0,0.00026364,2]
[391271908,1760459437456,-2500.0,0.00026364,2]
[391271909,1760459437465,-151.0,0.000264,16]
[391271910,1760459437474,-2000.0,0.00026416,2]
[391271911,1760459437484,-1918.36964118,0.00026416,2]
[391271912,1760459437493,-1847.30961073,0.00026416,2]
[391271913,1760459437502,-737.00803039,0.00026416,2]
[391271914,1760459437511,-2000.0,0.00026416,2]
[391271915,1760459437520,-2000.0,0.00026416,2]
[391271916,1760459437529,-415.21692233,0.00026416,2]
[391271917,1760459437538,-2000.0,0.00026516,2]
[391271918,1760459437548,-2000.0,0.00026516,2]
[391271919,1760459437557,-2000.0,0.00026516,2]
[391271920,1760459437566,-2000.0,0.00026516,2]
[391271921,1760459437575,-2000.0,0.00026516,2]
[391271922,1760459437584,-714.16357218,0.00026516,2]
[391271923,1760459437594,-1022.68705568,0.00026516,2]
[391271924,1760459437603,-800.04200029,0.00026516,2]
[391271925,1760459437612,-761.62110526,0.00026516,2]
[391271926,1760459437622,-1519.4346032,0.00026516,2]
[391271927,1760459437632,-2000.0,0.00026516,2]
[391271928,1760459437642,-2000.0,0.00026516,2]
[391271929,1760459437651,-2000.0,0.00026516,2]
[391271930,1760459437660,-1554.09529507,0.000266,2]
[391271931,1760459437669,-350.0,0.00026613,2]
[391271932,1760459437681,-450.0,0.00026613,2]
[391271933,1760459437689,-2236.76106908,0.00026696,2]
[391271934,1760459437699,-402.43064913,0.000267,7]
[391271935,1760459437708,-1630.90976695,0.00026718,2]
[391271936,1760459437717,-1500.0,0.00026718,2]
[391271937,1760459437726,-550.89871262,0.000268,2]
[391271938,1760459437735,-37183.22,0.000268,7]
[391271939,1760459437744,-1060.0,0.00026807,2]
[391271940,1760459437753,-3003.26524387,0.00026912,2]
[391271941,1760459437762,-3000.0,0.00026912,2]
[391271942,1760459437771,-1463.11226929,0.00026964,2]
[391271943,1760459437781,-2500.0,0.00026964,2]
[391271944,1760459437790,-847.94219567,0.00026964,2]
[391271945,1760459437799,-8400.49,0.00026987,2]
[391271946,1760459437809,-1152.0,0.0002705,2]
[391271947,1760459437819,-2500.0,0.00027064,2]
[391271948,1760459437828,-2500.0,0.00027064,2]
[391271949,1760459437838,-2500.0,0.00027064,2]
[391271950,1760459437849,-2500.0,0.00027064,2]
[391271951,1760459437858,-2500.0,0.00027064,2]
[391271952,1760459437867,-1002.02220528,0.00027064,2]
[391271953,1760459437877,-625.88440353,0.00027064,2]
[391271954,1760459437888,-2500.0,0.00027064,2]
[391271955,1760459437898,-450.0,0.00027161,2]
[391271957,1760459437907,-600.0,0.00027161,2]
[391271959,1760459437917,-555.1393449,0.00027266,2]
[391271961,1760459437927,-7360.87,0.00027397,4]
[391271963,1760459437936,-200.3671795,0.00027397,5]
[391271965,1760459437945,-6439.65,0.000274,2]
[391271967,1760459437954,-3941.67,0.000274,2]
[391271968,1760459437963,-578.91051157,0.000274,2]
[391271969,1760459437974,-1000.0,0.0002746,5]
[391271971,1760459437983,-212.901145,0.00027504,2]
[391271972,1760459437992,-322.377182,0.00027504,2]
[391271973,1760459438002,-151.0,0.00027512,30]
[391271974,1760459438011,-151.0,0.00027512,30]
[391271976,1760459438020,-151.0,0.00027512,30]
[391271978,1760459438030,-151.0,0.00027512,30]
[391271980,1760459438041,-151.0,0.00027512,30]
[391271981,1760459438051,-203.611045,0.00027512,30]
[391271982,1760459438060,-151.0,0.00027512,30]
[391271983,1760459438070,-151.0,0.00027512,30]
[391271984,1760459438079,-151.0,0.00027512,30]
[391271985,1760459438088,-162.404187,0.00027512,30]
[391271986,1760459438098,-151.0,0.00027512,30]
[391271987,1760459438108,-2399.091529,0.00027512,30]
[391271989,1760459438118,-151.0,0.00027512,30]
[391271990,1760459438128,-2399.091529,0.00027512,30]
[391271992,1760459438141,-151.0,0.00027512,30]
[391271994,1760459438151,-2399.091529,0.00027512,30]
[391271996,1760459438161,-151.0,0.00027512,30]
[391271998,1760459438171,-2399.091529,0.00027512,30]
[391271999,1760459438183,-153.865829,0.00027512,30]
[391272000,1760459438193,-151.0,0.00027512,30]
[391272001,1760459438202,-151.0,0.00027512,30]
[391272003,1760459438212,-151.0,0.00027512,30]
[391272005,1760459438222,-151.0,0.00027512,30]
[391272007,1760459438232,-151.0,0.00027512,30]
[391272009,1760459438241,-1000.0,0.00027512,5]
[391272010,1760459438251,-2268.25006225,0.00027594,2]
[391272012,1760459438261,-3000.0,0.00027612,5]
[391272014,1760459438270,-2002.83621437,0.00027612,5]
[391272016,1760459438280,-3000.0,0.00027612,5]
[391272017,1760459438290,-177.56474276,0.00027671,2]
[391272018,1760459438300,-750.0,0.00027708,5]
[391272019,1760459438311,-550.0,0.00027708,5]
[391272020,1760459438320,-197.0,0.00027726,26]
[391272021,1760459438329,-2236.76106908,0.00027773,2]
[391272022,1760459438338,-3242.75007469,0.00027873,14]
[391272023,1760459438424,-500.0,0.00027873,14]
[391272024,1760459438436,-4322.14798918,0.00027873,14]
[391272025,1760459438541,-451.63211826,0.00022378,2]
[391272026,1760459438551,-1704.29786304,0.00027873,14]
[391272027,1760459438560,-5000.0,0.00027873,17]
[391272028,1760459438570,-5000.0,0.00027873,14]
[391272029,1760459438579,-5000.0,0.00027873,16]
[391272030,1760459438588,-5000.0,0.00027873,18]
[391272031,1760459438598,-1702.800792,0.000279,3]
[391272032,1760459438607,-1451.14558009,0.00027967,2]
[391272033,1760459438617,-9600.56,0.00027986,2]
[391272035,1760459438628,-606.92231052,0.00028,2]
[391272036,1760459438641,-3500.0,0.0002816,5]
[391272037,1760459438651,-2509.95864256,0.0002816,5]
[391272038,1760459438660,-37183.22,0.000282,7]
[391272039,1760459438669,-151.0,0.000282,30]
[391272040,1760459438679,-151.0,0.000282,30]
[391272041,1760459438689,-151.0,0.000282,30]
[391272042,1760459438698,-151.465189,0.000282,30]
[391272044,1760459438707,-151.0,0.000282,30]
[391272045,1760459438717,-151.0,0.000282,30]
[391272046,1760459438726,-151.0,0.000282,30]
[391272047,1760459438735,-151.0,0.000282,30]
[391272048,1760459438745,-152.02672942,0.00028256,5]
[391272049,1760459438756,-451.77797328,0.00028256,5]
[391272050,1760459438765,-1000.0,0.000284,3]
[391272051,1760459438774,-1927.0,0.00028436,2]
[391272052,1760459438784,-1927.0,0.00028461,2]
[391272053,1760459438793,-1451.14558009,0.00028473,2]
[391272055,1760459438803,-6439.65,0.000285,2]
[391272056,1760459438812,-3941.67,0.000285,2]
[391272057,1760459438821,-1200.0,0.00028517,7]
[391272058,1760459438831,-1451.14558009,0.00028528,2]
[391272059,1760459438841,-151.93341384,0.00028548,30]
[391272060,1760459438860,-4030.0,0.00028567,2]
[391272061,1760459438871,-634.93410946,0.000286,2]
[391272062,1760459438883,-143554.6559192,0.0002871,4]
[391272063,1760459438892,-984.33032214,0.0002876,2]
[391272064,1760459438902,-521.37491996,0.0002876,2]
[391272065,1760459438911,-7360.87,0.00028767,6]
[391272066,1760459438921,-212.901145,0.000288,30]
[391272067,1760459438932,-322.377182,0.000288,30]
[391272068,1760459438943,-149136.66166159,0.000288,30]
[391272069,1760459438953,-212.901145,0.00028809,2]
[391272070,1760459438963,-322.377182,0.00028809,2]
[391272071,1760459438973,-1000.0,0.00028838,2]
[391272072,1760459438983,-1000.0,0.00028838,2]
[391272073,1760459438994,-1000.0,0.00028838,2]
[391272074,1760459439005,-250.0,0.00028838,2]
[391272075,1760459439015,-1000.0,0.00028838,2]
[391272076,1760459439026,-151.0,0.00028838,2]
[391272077,1760459439038,-250.0,0.00028838,2]
[391272078,1760459439047,-1000.0,0.00028838,2]
[391272079,1760459439057,-151.0,0.00028838,2]
[391272080,1760459439066,-250.0,0.00028838,2]
[391272082,1760459439075,-1000.0,0.00028838,2]
[391272083,1760459439085,-151.0,0.00028838,2]
[391272084,1760459439094,-250.0,0.00028838,2]
[391272085,1760459439104,-763.35183813,0.00028838,2]
[391272086,1760459439114,-151.0,0.00028838,2]
[391272087,1760459439123,-250.0,0.00028838,2]
[391272088,1760459439137,-151.0,0.00028838,2]
[391272089,1760459439148,-250.0,0.00028838,2]
[391272090,1760459439158,-151.0,0.00028838,2]
[391272091,1760459439168,-250.0,0.00028838,2]
[391272092,1760459439178,-251.99672079,0.00028838,2]
[391272093,1760459439188,-248.04596635,0.00028838,2]
[391272094,1760459439197,-250.0,0.00028838,2]
[391272095,1760459439207,-151.0,0.00028838,2]
[391272096,1760459439216,-250.0,0.00028838,2]
[391272097,1760459439226,-151.0,0.00028838,2]
[391272098,1760459439237,-212.33504386,0.00028838,2]
[391272099,1760459439249,-250.0,0.00028838,2]
[391272100,1760459439259,-250.0,0.00028838,2]
[391272101,1760459439268,-250.0,0.00028838,2]
[391272102,1760459439278,-250.0,0.00028838,2]
[391272103,1760459439287,-250.0,0.00028838,2]
[391272104,1760459439296,-151.0,0.00028838,2]
[391272105,1760459439306,-250.0,0.00028838,2]
[391272106,1760459439315,-250.0,0.00028838,2]
[391272107,1760459439325,-250.0,0.00028838,2]
[391272108,1760459439334,-250.0,0.00028838,2]